bitfinex/quotes_ETHUSD_20250428
["timestamp","ask_amount","ask_price","bid_price","bid_amount"]
[1745829865672,0.7767,1810.9,1810.8,4.641]
[1745829866055,1.08606711,1810.9,1810.8,4.641]
[1745829866938,4.08606711,1810.9,1810.8,4.641]
[1745829867360,1.08606711,1810.9,1810.8,4.641]
[1745829867564,1.43014516,1810.9,1810.8,4.641]
[1745829868562,4.98014516,1810.9,1810.8,4.641]
[1745829870247,4.43014516,1810.9,1810.8,4.641]
[1745829870747,3.65344516,1810.9,1810.8,4.641]
[1745829872583,3.30936711,1810.9,1810.8,4.641]
[1745829872788,0.30936711,1810.9,1810.8,4.641]
[1745829876563,0.30936711,1810.9,1810.8,5.4451]
[1745829878957,0.30936711,1811.3,1810.8,5.4451]
[1745829880154,0.30936711,1811.2,1810.8,5.4451]
[1745829880782,0.30936711,1811.1,1810.8,5.4451]
[1745829881766,0.30936711,1811.0,1810.8,5.4451]
[1745829882467,0.30936711,1810.9,1810.8,5.4451]
[1745829891394,0.30936711,1810.9,1810.8,4.641]
[1745829891856,0.30936711,1810.9,1810.6,0.7653]
[1745829892062,1.10486711,1810.9,1810.7,4.639]
[1745829892761,0.30936711,1810.8,1810.7,4.639]
[1745829901214,0.30936711,1810.8,1810.7,5.4213]
[1745829906778,0.30936711,1810.8,1810.7,6.22096299]
[1745829908217,0.30936711,1810.8,1810.7,5.4213]
[1745829913894,0.30936711,1810.8,1810.7,14.64365054]
[1745829914125,0.30936711,1811.2,1810.8,11.04462278]
[1745829914338,0.30936711,1811.2,1811.0,0.7998]
[1745829914543,0.30936711,1811.2,1811.1,4.63]
[1745829914852,0.7891,1811.5,1811.1,4.63]
[1745829915526,0.31001606,1811.4,1811.1,4.63]
[1745829916249,0.31001606,1811.3,1811.1,4.63]
[1745829917113,0.31001606,1811.2,1811.1,4.63]
[1745829921767,1.07031606,1811.2,1811.1,4.63]
[1745829922062,3.4202776,1811.2,1811.1,4.629]
[1745829922267,1.07031606,1811.2,1811.1,4.629]
[1745829924981,0.31001606,1811.2,1811.1,4.629]
[1745829927959,1.10161606,1811.2,1811.1,4.629]
[1745829928360,1.51177767,1811.2,1811.1,4.629]
[1745829930032,1.10161606,1811.2,1811.1,4.629]
[1745829937073,0.31001606,1811.2,1811.1,4.629]
[1745829952615,0.31001606,1811.2,1811.1,5.3902]
[1745829953109,0.31001606,1811.2,1811.1,5.90548815]
[1745829955110,0.31001606,1811.2,1811.1,5.3902]
[1745829958212,0.31001606,1811.2,1811.1,5.90518978]
[1745829965095,0.31001606,1811.2,1811.1,5.14398978]
[1745829965923,0.31001606,1811.2,1811.1,4.629]
[1745829966487,0.28098142,1811.2,1811.1,4.629]
[1745829969435,2.63094296,1811.2,1811.1,4.629]
[1745829969934,0.28098142,1811.2,1811.1,4.629]
[1745829972015,0.7994,1811.3,1811.1,4.629]
[1745829974201,1.11433615,1811.3,1811.1,4.629]
[1745829974642,6.13636154,1811.2,1811.1,4.629]
[1745829979028,6.44635802,1811.2,1811.1,4.629]
[1745829992261,0.30999648,1811.2,1811.1,4.629]
[1745829997279,1.14309648,1811.2,1811.1,4.629]
[1745829997482,1.14309648,1811.2,1811.0,4.609]
[1745829997483,3.49305802,1811.2,1811.0,4.609]
[1745829997679,4.1824058,1811.1,1811.0,4.609]
[1745829998377,1.3409,1811.0,1810.8,1.0]
[1745829998671,6.69086154,1810.9,1810.8,1.0]
[1745829998880,7.00085802,1810.9,1810.8,1.0]
[1745829999072,9.35081956,1810.9,1810.8,1.0]
[1745829999274,7.9781377,1810.9,1810.8,1.0]
[1745830000577,10.32809924,1810.9,1810.8,1.0]
[1745830001080,10.32809924,1810.9,1810.8,0.58544872]
[1745830001784,16.38809924,1810.9,1810.8,0.58544872]
[1745830002082,14.0381377,1810.9,1810.8,0.58544872]
[1745830003265,14.30952644,1810.9,1810.8,0.58544872]
[1745830003460,14.0381377,1810.9,1810.8,0.58544872]
[1745830004589,6.36999648,1810.9,1810.8,0.58544872]
[1745830004888,0.30999648,1810.9,1810.8,0.58544872]
[1745830005459,3.30999648,1810.9,1810.8,0.58544872]
[1745830005661,0.30999648,1810.9,1810.8,0.58544872]
[1745830006149,3.30999648,1810.9,1810.8,0.58544872]
[1745830006485,0.30999648,1810.9,1810.8,0.58544872]
[1745830007587,0.30999648,1810.9,1810.8,1.34594872]
[1745830017703,0.30999648,1810.9,1810.8,0.58544872]
[1745830019710,0.30999648,1810.9,1810.8,5.19444872]
[1745830021828,1.06689648,1810.9,1810.8,0.58544872]
[1745830022008,6.41685802,1810.9,1810.8,0.58544872]
[1745830024177,3.30999648,1810.9,1810.8,0.58544872]
[1745830029755,4.09729648,1810.9,1810.8,0.58544872]
[1745830030956,4.64729648,1810.9,1810.8,0.58544872]
[1745830031245,7.69698382,1810.9,1810.8,0.58544872]
[1745830032047,8.11345937,1810.9,1810.8,0.58544872]
[1745830032220,5.76349783,1810.9,1810.8,0.58544872]
[1745830032410,8.11345937,1810.9,1810.8,0.58544872]
[1745830034721,8.11345937,1810.9,1810.8,0.3781494]
[1745830035123,3.55,1810.8,1810.5,4.609]
[1745830035433,5.89996154,1810.6,1810.5,4.609]
[1745830036056,6.20995802,1810.6,1810.5,4.609]
[1745830036225,5.65995802,1810.6,1810.5,4.609]
[1745830042968,6.20995802,1810.6,1810.5,4.609]
[1745830043342,6.99635802,1810.6,1810.5,4.609]
[1745830043544,7.73149382,1810.6,1810.5,4.609]
[1745830046163,0.8111,1810.4,1810.2,4.61]
[1745830046377,5.34996154,1810.3,1810.2,4.61]
[1745830046732,5.65995802,1810.3,1810.2,4.61]
[1745830046938,6.30706382,1810.3,1810.2,4.61]
[1745830048834,5.65995802,1810.3,1810.2,4.61]
[1745830051350,6.20995802,1810.3,1810.2,4.61]
[1745830051775,6.98365802,1810.3,1809.9,4.611]
[1745830051979,2.34996154,1810.1,1809.9,4.611]
[1745830052344,0.30946068,1810.0,1809.9,4.611]
[1745830053840,4.08116068,1810.0,1809.7,0.22855664]
[1745830054047,5.34996154,1809.8,1809.7,0.22855664]
[1745830054581,5.65942222,1809.8,1809.7,0.22855664]
[1745830057051,6.46762222,1809.8,1809.7,0.22855664]
[1745830057487,6.46762222,1809.8,1809.6,4.611]
[1745830057488,3.55,1809.7,1809.6,4.611]
[1745830057794,0.8082,1809.6,1809.3,4.611]
[1745830058040,0.7682,1809.3,1809.0,4.611]
[1745830058166,3.7682,1809.3,1809.0,4.611]
[1745830058498,2.34996154,1809.1,1809.0,4.611]
[1745830058849,5.65942222,1809.1,1809.0,4.611]
[1745830059245,3.30946068,1809.1,1809.0,4.611]
[1745830070019,3.30946068,1809.1,1809.0,5.388]
[1745830071105,0.30946068,1809.1,1809.0,5.388]
[1745830072191,3.0,1809.3,1809.0,5.388]
[1745830072489,5.34996154,1809.2,1808.7,17.4185]
[1745830072716,5.34996154,1809.2,1808.8,4.613]
[1745830072917,0.30946068,1809.1,1808.8,4.613]
[1745830073504,0.30946068,1809.1,1808.9,0.8325]
[1745830074108,0.30946068,1809.0,1808.9,0.8325]
[1745830074438,0.30946068,1809.0,1808.8,5.3907]
[1745830075040,0.30946068,1808.9,1808.8,5.3907]
[1745830076131,0.30946068,1809.1,1808.8,5.3907]
[1745830076329,0.8754029,1809.1,1808.8,5.3907]
[1745830076744,0.30946068,1809.1,1808.8,5.3907]
[1745830077228,0.30946068,1809.0,1808.9,3.14962453]
[1745830077402,0.30946068,1809.0,1808.9,3.92532453]
[1745830077812,0.30946068,1809.4,1808.9,3.14962453]
[1745830077998,0.30946068,1809.4,1809.0,0.7757]
[1745830078323,0.30946068,1809.4,1809.1,0.7757]
[1745830078496,0.30946068,1809.4,1809.2,4.613]
[1745830078909,0.30946068,1809.4,1809.3,0.7757]
[1745830079113,3.0,1809.5,1809.3,0.7757]
[1745830079296,0.66291787,1809.7,1809.3,0.7757]
[1745830079511,3.7544,1809.9,1809.3,0.7757]
[1745830079954,0.30910759,1809.8,1809.3,0.7757]
[1745830080450,3.0,1809.7,1809.3,0.7757]
[1745830081051,0.30910759,1809.6,1809.3,0.7757]
[1745830081644,0.30910759,1809.5,1809.3,0.7757]
[1745830082445,0.30910759,1809.4,1809.3,0.7757]
[1745830083051,0.30910759,1809.4,1809.3,1.31457]
[1745830083340,0.30910759,1809.4,1809.3,0.8146]
[1745830087527,0.30910759,1809.4,1809.2,4.613]
[1745830087913,0.30910759,1809.3,1809.2,4.613]
[1745830089250,1.07980759,1809.3,1809.2,4.613]
[1745830089547,4.4227845,1809.3,1809.2,4.613]
[1745830092574,4.9727845,1809.3,1809.2,4.613]
[1745830092731,4.9727845,1809.3,1808.9,4.612]
[1745830093252,0.30910759,1809.2,1808.9,4.612]
[1745830094121,0.30910759,1809.1,1808.9,4.612]
[1745830094957,0.30910759,1809.0,1808.9,4.612]
[1745830095459,1.14050759,1809.0,1808.9,4.612]
[1745830097863,0.30910759,1809.0,1808.9,4.612]
[1745830108273,0.30910759,1809.0,1808.9,4.612]
[1745830110079,0.30910759,1809.0,1808.8,4.613]
[1745830110959,0.30910759,1808.9,1808.8,4.613]
[1745830115172,0.30910759,1808.9,1808.4,0.79010656]
[1745830115394,0.30910759,1808.9,1808.5,4.613]
[1745830115690,0.30910759,1808.9,1808.4,0.00700656]
[1745830115691,3.8024,1808.7,1808.4,0.00700656]
[1745830115856,3.8024,1808.7,1808.5,4.613]
[1745830116463,0.30910759,1808.6,1808.5,4.613]
[1745830116665,2.65906913,1808.6,1808.5,4.613]
[1745830116861,6.04680526,1808.6,1808.5,4.613]
[1745830118003,3.69684372,1808.6,1808.5,4.613]
[1745830122506,3.30910759,1808.6,1808.5,4.613]
[1745830124589,0.30910759,1808.6,1808.5,4.613]
[1745830133410,1.08150759,1808.6,1808.5,4.613]
[1745830135678,0.30910759,1808.6,1808.5,4.613]
[1745830145743,0.30910759,1808.6,1808.4,5.42070656]
[1745830146322,0.30910759,1808.5,1808.4,5.42070656]
[1745830147375,0.30910759,1808.5,1808.4,6.22036955]
[1745830147582,0.30910759,1808.5,1808.4,5.42070656]
[1745830149189,0.30910759,1808.5,1808.4,4.62200656]
[1745830158087,4.08570759,1808.5,1808.4,4.62200656]
[1745830160970,4.63570759,1808.5,1808.4,4.62200656]
[1745830161271,5.3342745,1808.5,1808.4,4.62200656]
[1745830161472,4.7842745,1808.5,1808.4,4.62200656]
[1745830161801,5.3342745,1808.5,1808.4,4.62200656]
[1745830162575,5.3342745,1808.5,1808.1,4.614]
[1745830162576,0.8157,1808.3,1808.1,4.614]
[1745830162910,5.34996154,1808.2,1808.0,4.614]
[1745830163056,0.30910759,1808.1,1808.0,4.614]
[1745830164094,0.30910759,1808.1,1808.0,5.4247]
[1745830164797,0.30910759,1808.1,1808.0,4.614]
[1745830167194,4.07950759,1808.1,1808.0,4.614]
[1745830167381,1.07950759,1808.1,1808.0,4.614]
[1745830167588,1.4224545,1808.1,1808.0,4.614]
[1745830167898,0.6520545,1808.1,1808.0,4.614]
[1745830168100,0.30910759,1808.1,1808.0,4.614]
[1745830170372,1.13610759,1808.1,1808.0,4.614]
[1745830171384,0.30910759,1808.1,1808.0,4.614]
[1745830173802,1.10580759,1808.1,1808.0,4.614]
[1745830177531,4.10580759,1808.1,1808.0,4.614]
[1745830177687,4.7513845,1808.1,1808.0,4.614]
[1745830178890,0.9546845,1808.1,1808.0,4.614]
[1745830179084,0.30910759,1808.1,1808.0,4.614]
[1745830179490,0.30910759,1808.1,1808.0,5.4137]
[1745830180799,0.30910759,1808.1,1808.0,4.614]
[1745830182713,0.30910759,1808.1,1808.0,5.422]
[1745830183123,0.27890767,1808.1,1808.0,5.422]
[1745830183427,0.27890767,1808.1,1808.0,11.70180311]
[1745830183827,0.8056,1809.1,1808.1,6.3384498]
[1745830184027,0.8056,1809.1,1808.5,0.808]
[1745830184238,0.8056,1809.1,1808.6,4.615]
[1745830187532,3.0,1809.0,1808.6,4.615]
[1745830188954,0.8056,1809.1,1808.6,4.615]
[1745830189946,0.8056,1809.1,1808.7,0.7682]
[1745830192715,0.8025,1809.4,1808.7,0.7682]
[1745830193425,3.15246154,1809.4,1808.7,0.7682]
[1745830193612,5.34996154,1809.2,1808.7,0.7682]
[1745830193815,6.15636154,1809.2,1808.7,0.7682]
[1745830195658,0.30875505,1809.1,1808.7,0.7682]
[1745830198347,0.30875505,1809.0,1808.7,0.7682]
[1745830199629,0.30875505,1809.1,1808.7,0.7682]
[1745830199837,0.87462671,1809.1,1808.7,0.7682]
[1745830200366,0.30875505,1809.0,1808.7,0.7682]
[1745830201675,0.30875505,1808.9,1808.7,0.7682]
[1745830202777,0.30875505,1809.0,1808.7,0.7682]
[1745830203408,0.30875505,1808.9,1808.7,0.7682]
[1745830204178,1.10765505,1809.0,1808.7,0.7682]
[1745830204878,0.30875505,1808.9,1808.8,4.613]
[1745830209186,0.30875505,1808.9,1808.7,4.613]
[1745830210087,0.30875505,1808.8,1808.7,4.613]
[1745830211195,0.30875505,1808.8,1808.7,5.4339]
[1745830229127,0.30875505,1808.8,1808.7,7.78386154]
[1745830229325,0.30875505,1808.8,1808.7,14.06152406]
[1745830230291,0.30875505,1809.6,1808.7,18.76945692]
[1745830230491,0.30875505,1809.6,1808.9,2.34996154]
[1745830230715,0.30875505,1809.6,1809.0,0.8003]
[1745830231022,0.30875505,1809.6,1809.1,4.612]
[1745830231385,0.30875505,1809.5,1809.1,4.612]
[1745830232119,0.30875505,1809.4,1809.1,4.612]
[1745830232617,0.30875505,1809.4,1809.2,0.7969]
[1745830233188,0.30875505,1809.3,1809.2,0.7969]
[1745830234009,0.30875505,1809.3,1809.1,4.612]
[1745830234498,0.30875505,1809.3,1809.2,4.612]
[1745830236398,0.30875505,1809.3,1809.2,5.4345]
[1745830239122,0.30875505,1809.3,1809.2,7.78446154]
[1745830243826,0.30875505,1809.3,1809.2,8.5332912]
[1745830244031,0.30875505,1809.3,1809.2,7.78446154]
[1745830244827,0.30875505,1809.8,1809.2,7.78446154]
[1745830244991,0.30875505,1809.8,1809.2,24.37546154]
[1745830245394,0.30875505,1809.7,1809.2,24.37546154]
[1745830246517,0.30875505,1809.6,1809.5,2.34996154]
[1745830246807,0.30875505,1809.6,1809.5,6.95996154]
[1745830247025,0.30875505,1809.6,1809.5,7.77316154]
[1745830247396,0.30875505,1810.2,1809.5,7.77316154]
[1745830248604,0.30875505,1810.1,1809.6,0.7657]
[1745830248810,0.30875505,1810.1,1809.7,2.34996154]
[1745830249201,0.30875505,1810.0,1809.7,2.34996154]
[1745830249400,0.30875505,1810.0,1809.6,0.7657]
[1745830249599,1.13105505,1810.0,1809.7,4.61]
[1745830250218,0.30875505,1809.9,1809.7,4.61]
[1745830250734,0.30875505,1809.9,1809.6,0.7657]
[1745830251311,0.30875505,1809.8,1809.6,0.7657]
[1745830252850,0.30875505,1810.1,1809.7,4.61]
[1745830253634,0.808,1810.2,1809.7,4.61]
[1745830253635,0.30875505,1810.0,1809.7,4.61]
[1745830254600,0.30875505,1809.9,1809.7,4.61]
[1745830255434,0.30875505,1810.1,1809.7,4.61]
[1745830256242,0.808,1810.2,1809.7,4.61]
[1745830256243,0.30875505,1810.0,1809.7,4.61]
[1745830256943,0.30875505,1809.9,1809.7,4.61]
[1745830257748,0.808,1810.2,1809.7,4.61]
[1745830258806,0.30943564,1810.1,1809.7,4.61]
[1745830259763,0.30943564,1810.0,1809.7,4.61]
[1745830260647,0.30943564,1809.9,1809.7,4.61]
[1745830261422,0.808,1810.2,1809.7,6.95996154]
[1745830261751,2.34996154,1810.5,1809.8,0.7627]
[1745830262048,0.8023,1810.4,1809.8,0.7627]
[1745830262760,0.30946964,1810.3,1809.8,0.7627]
[1745830263747,0.30946964,1810.2,1809.8,0.7627]
[1745830264848,0.30946964,1810.1,1809.8,0.7627]
[1745830265815,0.30946964,1810.0,1809.8,0.7627]
[1745830267554,0.30946964,1809.9,1809.8,0.7627]
[1745830270994,0.30946964,1809.9,1809.7,4.61]
[1745830271168,1.06856964,1809.9,1809.8,4.609]
[1745830271826,0.30946964,1809.9,1809.8,4.609]
[1745830276563,1.07146964,1809.9,1809.8,4.609]
[1745830276868,3.82871583,1809.9,1809.8,4.608]
[1745830277041,4.21158741,1809.9,1809.8,4.608]
[1745830277567,1.86162587,1809.9,1809.8,4.608]
[1745830277766,1.47875429,1809.9,1809.8,4.608]
[1745830278069,0.30946964,1809.9,1809.8,4.608]
[1745830279949,0.762,1810.1,1809.8,4.608]
[1745830281475,2.75778069,1810.4,1809.8,4.608]
[1745830281672,0.7786,1810.5,1810.0,2.34996154]
[1745830281847,0.7786,1810.5,1810.0,3.0987912]
[1745830283173,0.7786,1810.5,1810.0,0.74882966]
[1745830283488,0.7786,1810.5,1809.9,0.8034]
[1745830283977,3.7786,1810.5,1809.9,0.8034]
[1745830284472,1.43338592,1810.5,1809.9,0.8034]
[1745830284804,0.7786,1810.5,1809.9,0.8034]
[1745830287666,0.829,1810.6,1810.0,3.10666154]
[1745830288374,0.829,1810.6,1810.0,0.7567]
[1745830288942,2.34996154,1810.4,1810.0,0.7567]
[1745830289147,0.7707,1810.3,1810.0,0.7567]
[1745830289644,3.8027,1810.5,1810.0,0.7567]
[1745830290490,0.8027,1810.5,1810.0,0.7567]
[1745830290693,0.42399252,1810.7,1810.0,0.7567]
[1745830290694,1.23759252,1810.7,1810.0,0.7567]
[1745830290881,1.17235541,1810.7,1810.0,0.7567]
[1745830291555,6.17136154,1810.6,1810.0,0.7567]
[1745830291756,0.35875541,1810.7,1809.8,4.608]
[1745830291757,2.34996154,1810.2,1810.1,4.608]
[1745830292190,3.8214,1810.3,1810.1,4.608]
[1745830292497,0.8202,1810.1,1810.0,4.608]
[1745830293524,0.753,1810.2,1810.0,4.608]
[1745830293685,3.0,1810.1,1810.0,4.608]
[1745830293884,0.753,1810.0,1809.2,5.768]
[1745830294086,0.753,1810.0,1809.3,4.608]
[1745830294087,0.753,1809.7,1809.3,4.608]
[1745830294473,3.753,1809.7,1809.3,4.608]
[1745830294863,0.8045,1810.0,1809.3,4.608]
[1745830295163,2.34996154,1809.9,1809.3,4.608]
[1745830295557,3.8252,1809.8,1809.3,4.608]
[1745830295803,0.8252,1809.8,1809.3,4.608]
[1745830295963,0.8252,1809.8,1809.4,0.7853]
[1745830296159,0.8252,1810.0,1809.4,0.7853]
[1745830301579,5.34996154,1809.9,1809.4,0.7853]
[1745830302813,3.0,1809.9,1809.4,0.7853]
[1745830305614,3.0,1809.9,1809.3,4.608]
[1745830305615,0.7861,1809.8,1809.3,4.608]
[1745830305980,2.34996154,1809.7,1809.4,4.627]
[1745830306182,0.7747,1809.6,1809.4,4.627]
[1745830307395,3.7804,1809.8,1809.4,4.627]
[1745830312877,0.96825646,1810.2,1809.5,0.7837]
[1745830312878,3.8273,1810.0,1809.5,0.7837]
[1745830313078,0.8273,1810.0,1809.5,0.7837]
[1745830317723,0.8273,1810.0,1809.6,4.628]
[1745830318300,2.34996154,1809.9,1809.6,4.628]
[1745830319226,0.41567594,1810.2,1809.1,17.33282966]
[1745830319227,2.34996154,1809.7,1809.3,0.799]
[1745830319429,2.34996154,1809.7,1809.4,4.628]
[1745830320133,3.7789,1809.8,1809.4,4.628]
[1745830320303,4.39178615,1809.8,1809.4,4.628]
[1745830323804,2.34996154,1809.7,1809.4,4.628]
[1745830324038,0.7512,1809.6,1809.4,4.628]
[1745830325126,2.34996154,1809.5,1809.1,16.584]
[1745830325289,2.34996154,1809.5,1809.4,4.628]
[1745830325690,3.17156154,1809.5,1809.4,4.628]
[1745830325889,3.17156154,1809.5,1809.1,16.584]
[1745830325890,0.8216,1809.4,1809.1,16.584]
[1745830326147,3.0,1809.1,1809.0,4.628]
[1745830328941,0.772,1809.1,1809.0,4.628]
[1745830329145,0.772,1809.1,1808.7,4.628]
[1745830329346,3.12196154,1808.8,1808.7,4.628]
[1745830329649,6.43415769,1808.8,1808.7,4.628]
[1745830330431,4.08419615,1808.8,1808.7,4.628]
[1745830330756,3.772,1808.8,1808.7,4.628]
[1745830331092,3.0,1808.8,1808.7,4.628]
[1745830331604,3.7751,1809.0,1808.7,4.628]
[1745830332743,1.19218619,1809.0,1808.7,4.628]
[1745830333243,0.7751,1809.0,1808.7,4.628]
[1745830335511,3.12506154,1809.0,1808.7,4.628]
[1745830335744,0.31250615,1808.9,1808.7,4.628]
[1745830337042,3.12726154,1808.8,1808.7,4.628]
[1745830337242,6.12726154,1808.8,1808.7,4.628]
[1745830338940,6.67726154,1808.8,1808.7,4.628]
[1745830339520,3.0,1808.7,1808.4,16.589]
[1745830339723,3.96772615,1808.7,1808.4,21.222]
[1745830342953,3.96772615,1808.7,1808.4,4.633]
[1745830343120,2.34996154,1808.7,1808.4,4.633]
[1745830344248,3.7773,1808.8,1808.4,5.4481]
[1745830344451,2.34996154,1808.7,1808.4,5.4481]
[1745830345451,2.34996154,1808.7,1808.4,4.633]
[1745830345950,5.34996154,1808.7,1808.4,4.633]
[1745830346180,0.53499615,1808.6,1808.4,4.633]
[1745830346463,3.8012,1808.6,1808.4,4.633]
[1745830347073,2.34996154,1808.5,1808.4,4.633]
[1745830347577,2.34996154,1808.5,1808.2,4.633]
[1745830356407,3.0,1808.4,1808.2,4.633]
[1745830357768,0.7534,1808.3,1807.7,16.598]
[1745830357970,2.34996154,1807.9,1807.8,4.634]
[1745830358583,5.34996154,1807.9,1807.8,4.634]
[1745830362902,5.65948359,1807.9,1807.8,4.634]
[1745830379603,5.65948359,1807.9,1807.6,4.64]
[1745830380328,3.30952205,1807.8,1807.6,4.64]
[1745830381114,0.30952205,1807.7,1807.6,4.64]
[1745830386658,0.30952205,1807.7,1807.6,5.4346]
[1745830395181,0.30952205,1807.7,1807.6,7.78456154]
[1745830395484,0.30952205,1807.7,1807.6,14.61558858]
[1745830395671,0.30952205,1807.7,1807.6,9.0833912]
[1745830397455,0.30952205,1807.7,1807.6,5.4346]
[1745830397653,0.7715,1808.3,1807.7,0.7892]
[1745830398366,2.34996154,1808.2,1807.7,0.7892]
[1745830398675,0.31056632,1808.2,1807.9,0.8248]
[1745830398857,0.31056632,1808.2,1808.0,4.614]
[1745830399556,0.31056632,1808.1,1808.0,4.614]
[1745830400588,0.31056632,1808.1,1808.0,8.5375912]
[1745830400760,0.31056632,1808.1,1808.0,6.18762966]
[1745830401282,0.31056632,1808.6,1808.0,6.18762966]
[1745830401462,0.31056632,1808.6,1808.1,0.8248]
[1745830402500,0.31056632,1808.5,1808.1,0.8248]
[1745830403388,0.31056632,1808.4,1808.1,0.8248]
[1745830404501,0.31056632,1808.7,1808.1,0.8248]
[1745830404866,0.31056632,1808.6,1808.1,0.8248]
[1745830405507,0.31056632,1808.5,1808.1,0.8248]
[1745830406586,0.31056632,1808.7,1808.1,0.8248]
[1745830407489,0.31056632,1808.6,1808.1,0.8248]
[1745830407700,0.31056632,1808.6,1808.2,0.8119]
[1745830408031,0.31056632,1808.6,1808.3,0.8119]
[1745830408204,0.31056632,1808.6,1808.5,0.8119]
[1745830408406,0.31056632,1808.9,1808.5,0.8119]
[1745830409108,1.07346632,1808.8,1808.4,4.614]
[1745830409904,0.31056632,1808.7,1808.4,4.614]
[1745830413519,0.31056632,1808.7,1808.5,0.7556]
[1745830414414,0.31056632,1808.9,1808.5,0.7556]
[1745830415181,0.31056632,1808.8,1808.5,0.7556]
[1745830416299,0.31056632,1808.9,1808.5,0.7556]
[1745830416702,0.31056632,1808.8,1808.5,0.7556]
[1745830417415,0.31056632,1808.7,1808.4,4.614]
[1745830418316,3.14936154,1808.8,1808.4,4.614]
[1745830418317,0.31056632,1808.6,1808.4,4.614]
[1745830419119,0.31056632,1808.7,1808.4,4.614]
[1745830420296,0.31056632,1808.6,1808.4,4.614]
[1745830420917,0.31056632,1808.5,1808.4,4.614]
[1745830434230,0.31056632,1808.5,1808.4,2.479788]
[1745830435035,3.31056632,1808.5,1808.4,2.479788]
[1745830437328,3.95282911,1808.5,1808.4,2.479788]
[1745830437531,4.70452911,1808.5,1808.4,2.479788]
[1745830451664,4.70452911,1808.5,1808.2,4.614]
[1745830451958,0.31056632,1808.4,1808.2,4.614]
[1745830452735,0.31056632,1808.3,1808.2,4.614]
[1745830458656,0.7563,1808.2,1807.8,4.613]
[1745830458953,2.34996154,1808.0,1807.8,4.613]
[1745830459756,0.31056632,1807.9,1807.8,4.613]
[1745830469174,1.13006632,1807.9,1807.8,4.613]
[1745830469873,1.47806911,1807.9,1807.8,4.613]
[1745830470389,1.13006632,1807.9,1807.8,4.613]
[1745830471282,0.31056632,1807.9,1807.8,4.613]
[1745830478917,0.31056632,1807.9,1807.8,5.4279]
[1745830484893,0.31056632,1807.9,1807.8,6.17672966]
[1745830486209,0.31056632,1807.9,1807.8,5.4279]
[1745830490665,3.11666154,1808.5,1807.8,5.4279]
[1745830491042,3.11666154,1808.5,1807.9,0.8055]
[1745830491667,0.31032364,1808.4,1807.9,0.8055]
[1745830492045,0.31032364,1808.3,1807.9,0.8055]
[1745830493371,0.31032364,1808.2,1807.9,0.8055]
[1745830494066,0.31032364,1808.1,1807.9,0.8055]
[1745830495069,0.31032364,1808.0,1807.9,0.8055]
[1745830502886,0.31032364,1808.0,1807.9,5.4185]
[1745830503067,0.31032364,1808.0,1807.9,4.9185]
[1745830503787,0.31032364,1808.0,1807.9,4.613]
[1745830504021,0.31032364,1808.4,1807.9,5.36182966]
[1745830504694,0.31032364,1808.3,1808.0,0.74882966]
[1745830505600,0.31032364,1808.2,1808.0,0.74882966]
[1745830505972,0.31032364,1808.2,1808.1,0.8003]
[1745830513499,0.31032364,1808.2,1808.1,7.07979721]
[1745830514184,0.7845,1808.7,1808.1,7.07979721]
[1745830514390,0.7845,1808.7,1808.1,6.47979721]
[1745830514691,0.31051296,1808.6,1808.1,0.94912966]
[1745830515289,0.31051296,1808.6,1808.1,6.47979069]
[1745830515491,0.31051296,1808.6,1808.2,5.53023034]
[1745830515691,0.31051296,1808.5,1808.3,4.613]
[1745830516532,0.792,1808.8,1808.3,4.613]
[1745830517326,0.7976,1809.1,1808.5,2.34996154]
[1745830517516,0.3102668,1808.7,1808.6,8.5373867]
[1745830517702,0.3102668,1808.7,1808.6,8.3691912]
[1745830518099,0.3102668,1808.7,1808.6,13.89832976]
[1745830518538,0.3102668,1809.0,1808.6,14.44832976]
[1745830518696,0.3102668,1809.0,1808.7,0.6584]
[1745830518896,0.3102668,1809.0,1808.7,6.18715521]
[1745830519195,0.3102668,1809.0,1808.7,0.6584]
[1745830519523,0.3102668,1809.2,1808.7,0.6584]
[1745830519720,0.3102668,1809.2,1808.7,6.18712412]
[1745830520091,0.3102668,1809.2,1808.7,6.18705272]
[1745830520324,0.3102668,1809.2,1808.7,1.40722966]
[1745830523551,1.1052668,1809.3,1808.7,1.40722966]
[1745830525539,1.1052668,1809.3,1808.7,6.93605843]
[1745830526069,1.1052668,1809.3,1808.8,0.6584]
[1745830527047,0.3102668,1809.3,1808.8,0.6584]
[1745830530262,0.3102668,1809.3,1808.9,4.61]
[1745830536366,0.3102668,1809.3,1809.0,0.6584]
[1745830537065,0.3102668,1809.5,1809.0,0.6584]
[1745830537573,0.3102668,1809.5,1809.1,0.6584]
[1745830538951,0.3102668,1809.6,1809.1,0.6584]
[1745830539471,0.3102668,1809.5,1809.1,0.6584]
[1745830540479,0.8178,1809.7,1809.1,0.6584]
[1745830540480,0.3102668,1809.6,1809.1,0.6584]
[1745830541263,0.3102668,1809.6,1809.2,0.6584]
[1745830541447,0.3102668,1809.6,1809.3,4.609]
[1745830541839,0.3102668,1809.5,1809.3,4.609]
[1745830542876,0.3102668,1809.6,1809.3,4.609]
[1745830543466,0.3102668,1809.6,1809.4,0.6584]
[1745830543891,0.3102668,1809.5,1809.4,0.6584]
[1745830545354,0.3102668,1809.8,1809.4,0.6584]
[1745830546568,0.3102668,1809.7,1809.4,0.6584]
[1745830547077,0.3102668,1809.6,1809.4,0.6584]
[1745830547649,0.3102668,1809.5,1809.4,0.6584]
[1745830551462,0.3102668,1809.9,1809.4,0.6584]
[1745830551647,0.3102668,1809.9,1809.5,0.6584]
[1745830552174,0.3102668,1809.8,1809.6,0.6584]
[1745830552371,0.3102668,1809.8,1809.7,4.608]
[1745830553085,0.3102668,1810.1,1809.7,4.608]
[1745830553396,0.3102668,1810.1,1809.8,0.6584]